bitfinex/quotes_SOLUSD_20250908
["timestamp","ask_amount","ask_price","bid_price","bid_amount"]
[1757303483548,5.52356396,207.97,207.96,0.03]
[1757303483750,47.61407472,207.97,207.96,0.03]
[1757303483946,52.42246054,207.97,207.96,0.03]
[1757303484456,47.61407472,207.97,207.96,0.03]
[1757303485049,43.86356396,207.97,207.96,0.03]
[1757303485250,47.61407472,207.97,207.96,0.03]
[1757303485460,9.27407472,207.97,207.96,0.03]
[1757303485751,53.08246054,207.97,207.96,0.03]
[1757303487858,52.42246054,207.97,207.96,0.03]
[1757303488864,53.08246054,207.97,207.96,0.03]
[1757303489264,52.42246054,207.97,207.96,0.03]
[1757303489567,43.84356396,207.97,207.96,0.73]
[1757303489866,41.917663,207.97,207.96,0.73]
[1757303490573,41.917663,207.97,207.96,0.03]
[1757303492070,46.32817376,207.97,207.96,0.03]
[1757303492664,48.25407472,207.97,207.96,0.03]
[1757303492866,53.06246054,207.97,207.96,0.03]
[1757303493862,14.74246054,207.97,207.96,0.03]
[1757303494169,53.06246054,207.97,207.96,0.03]
[1757303494367,52.40246054,207.97,207.96,0.03]
[1757303494673,43.82356396,207.97,207.96,0.03]
[1757303495070,48.63194978,207.97,207.96,0.03]
[1757303496679,43.82356396,207.97,207.96,0.03]
[1757303497084,3.597663,207.97,207.96,0.71]
[1757303497281,41.897663,207.97,207.96,0.71]
[1757303497475,41.897663,207.97,207.96,4.46051076]
[1757303498167,41.897663,207.97,207.96,0.71]
[1757303498368,41.897663,207.97,207.96,4.46051076]
[1757303498985,41.897663,207.97,207.96,0.03]
[1757303499188,41.897663,207.97,207.96,0.71]
[1757303501274,41.897663,207.97,207.96,0.03]
[1757303502788,46.35817376,207.97,207.96,0.03]
[1757303503106,51.16655958,207.97,207.96,0.03]
[1757303503683,41.897663,207.97,207.96,0.03]
[1757303504192,50.45655958,207.97,207.96,0.03]
[1757303504570,46.70604882,207.97,207.96,0.03]
[1757303504778,50.45655958,207.97,207.96,0.03]
[1757303504967,41.897663,207.97,207.96,0.03]
[1757303506788,41.857663,207.97,207.96,0.03]
[1757303507294,4.307663,207.97,207.96,0.03]
[1757303507800,42.567663,207.97,207.96,0.03]
[1757303508382,41.857663,207.97,207.96,0.03]
[1757303516393,42.567663,207.97,207.96,0.03]
[1757303516605,44.49337853,207.97,207.96,0.03]
[1757303520120,43.78337853,207.97,207.96,0.03]
[1757303520614,5.52337853,207.97,207.96,0.03]
[1757303520914,5.52337853,207.97,207.96,4.46051076]
[1757303520915,41.817663,207.97,207.96,4.46051076]
[1757303521097,41.817663,207.97,207.96,0.03]
[1757303522121,41.82012534,207.97,207.96,0.03]
[1757303524806,42.53012534,207.97,207.96,0.03]
[1757303525818,44.45584086,207.97,207.96,0.03]
[1757303526006,41.82012534,207.97,207.96,0.03]
[1757303527828,42.52012534,207.97,207.96,0.03]
[1757303528147,41.82012534,207.97,207.96,0.03]
[1757303528538,42.52012534,207.97,207.96,0.03]
[1757303532409,41.82012534,207.97,207.96,0.03]
[1757303532713,3.60012534,207.97,207.96,0.03]
[1757303532912,41.78012534,207.97,207.96,3.12956945]
[1757303534212,41.78012534,207.97,207.96,2.42956945]
[1757303534736,41.78012534,207.97,207.96,3.12956945]
[1757303534916,41.78012534,207.97,207.96,2.42956945]
[1757303537021,41.78012534,207.97,207.96,0.03]
[1757303537919,42.48012534,207.97,207.96,0.03]
[1757303538115,49.68808061,207.97,207.96,0.03]
[1757303538322,66.88488233,207.97,207.96,0.03]
[1757303538535,68.81106151,207.97,207.96,0.03]
[1757303538839,68.79106151,207.97,207.96,0.03]
[1757303540830,66.39149206,207.97,207.96,0.03]
[1757303541031,68.79106151,207.97,207.96,0.03]
[1757303542845,65.1898538,207.97,207.96,0.03]
[1757303543054,68.78624448,207.97,207.96,0.03]
[1757303544334,30.62624448,207.97,207.96,0.03]
[1757303544644,68.76624448,207.97,207.96,0.03]
[1757303545545,52.77108102,207.97,207.96,0.03]
[1757303545724,55.17065047,207.97,207.96,0.03]
[1757303547018,68.76624448,207.97,207.96,0.03]
[1757303548446,65.1698538,207.97,207.96,0.03]
[1757303549145,51.57425979,207.97,207.96,0.03]
[1757303550347,51.51425979,207.97,207.96,0.03]
[1757303550934,46.00587397,207.97,207.96,0.03]
[1757303551246,51.51425979,207.97,207.96,0.03]
[1757303551950,65.1098538,207.97,207.96,0.03]
[1757303552323,68.70198742,207.97,207.96,0.03]
[1757303552731,65.1098538,207.97,207.96,0.03]
[1757303553849,65.0898538,207.97,207.96,0.03]
[1757303554644,13.37425979,207.97,207.96,0.03]
[1757303554848,47.95413445,207.97,207.96,0.03]
[1757303555738,47.25413445,207.97,207.96,0.03]
[1757303556055,47.92413445,207.97,207.96,0.03]
[1757303556551,4.32574863,207.97,207.96,0.03]
[1757303556749,43.11574863,207.97,207.96,0.03]
[1757303557052,47.92413445,207.97,207.96,0.03]
[1757303557847,47.25413445,207.97,207.96,0.03]
[1757303558351,47.92413445,207.97,207.96,0.03]
[1757303558550,6.734565,207.97,207.96,0.72]
[1757303558853,42.44574863,207.97,207.96,0.72]
[1757303559055,4.32574863,207.97,207.96,0.03]
[1757303559352,42.44574863,207.97,207.96,0.03]
[1757303559732,42.44574863,207.97,207.96,0.72]
[1757303559928,1.92617918,207.97,207.96,0.72]
[1757303560134,38.1,207.97,207.96,3.11956945]
[1757303560335,0.06,208.01,207.96,7.92818649]
[1757303560534,0.06,208.01,208.0,2.39956945]
[1757303560755,38.16,208.01,208.0,2.39956945]
[1757303561056,38.16,208.01,208.0,3.08956945]
[1757303562355,41.75083342,208.01,208.0,3.08956945]
[1757303562858,41.75083342,208.01,207.98,2.39956945]
[1757303563045,3.59083342,208.0,207.99,0.69]
[1757303563242,38.16,208.01,207.99,3.08956945]
[1757303563449,38.16,208.01,208.0,2.39956945]
[1757303563750,38.16,208.01,208.0,3.08956945]
[1757303565172,38.16,208.01,208.0,7.89726175]
[1757303569558,0.06,208.01,208.0,7.89726175]
[1757303569760,38.14,208.01,208.0,7.89726175]
[1757303570463,38.14,208.01,208.0,17.49553955]
[1757303572144,38.14,208.01,208.0,7.89726175]
[1757303572648,38.14,208.01,208.0,87.99726175]
[1757303579358,38.14,208.01,208.0,87.30726175]
[1757303580664,38.14,208.01,208.0,87.99726175]
[1757303580665,0.06,208.01,208.0,87.99726175]
[1757303580872,38.1,208.01,208.0,87.99726175]
[1757303581261,38.1,208.01,208.0,87.30726175]
[1757303582070,38.1,208.01,208.0,87.99726175]
[1757303582270,38.1,208.01,208.0,97.59553955]
[1757303582572,0.06,208.01,208.0,97.59553955]
[1757303582780,38.1,208.01,208.0,97.59553955]
[1757303584278,38.1,208.01,208.0,17.49553955]
[1757303586087,38.1,208.01,208.0,7.89726175]
[1757303587086,38.1,208.01,208.0,7.20726175]
[1757303587867,1e-08,208.01,208.0,30.40113356]
[1757303588073,1e-08,208.01,208.0,59.96113356]
[1757303588481,0.06,208.03,208.01,42.48559401]
[1757303588785,28.24211789,208.04,208.03,39.59559401]
[1757303588786,0.06,208.04,208.03,39.59559401]
[1757303588960,0.06,208.04,208.03,40.26559401]
[1757303589166,0.06,208.04,208.03,47.47216245]
[1757303589376,0.06,208.04,208.03,33.20656844]
[1757303590482,0.75,208.04,208.03,2.39956945]
[1757303592374,0.75,208.04,208.03,3.74602558]
[1757303593676,0.06,208.04,208.03,3.74602558]
[1757303594273,0.75,208.04,208.03,3.74602558]
[1757303595290,0.75,208.04,208.02,4.80723007]
[1757303595473,0.75,208.04,208.03,3.74602558]
[1757303596869,0.06,208.04,208.03,8.55302457]
[1757303597086,38.06,208.04,208.03,8.55302457]
[1757303597370,0.06,208.04,208.03,102.24861858]
[1757303597568,0.06,208.04,208.03,102.91861858]
[1757303597988,0.06,208.05,208.04,13.59559401]
[1757303598211,0.06,208.05,208.04,18.01161959]
[1757303599086,0.06,208.05,208.04,22.81838751]
[1757303602179,0.06,208.05,208.04,102.91838751]
[1757303602378,0.06,208.06,208.04,131.80838751]
[1757303602589,0.06,208.06,208.05,18.01161959]
[1757303603597,0.06,208.06,208.05,22.81815648]
[1757303604300,0.06,208.06,208.05,51.70815648]
[1757303608200,0.06,208.06,208.05,131.80815648]
[1757303608504,1e-08,208.06,208.05,131.80815648]
[1757303608896,1e-08,208.07,208.06,39.59559401]
[1757303609404,1e-08,208.07,208.06,44.01161959]
[1757303609609,1e-08,208.07,208.06,127.00161959]
[1757303609988,1e-08,208.07,208.06,126.33161959]
[1757303610217,1e-08,208.07,208.06,131.13792546]
[1757303610397,1e-08,208.07,208.06,131.80792546]
[1757303611209,1e-08,208.07,208.06,131.13792546]
[1757303617922,0.06,208.09,208.08,39.59559401]
[1757303618113,0.06,208.09,208.08,47.08764517]
[1757303619200,0.06,208.1,208.08,52.55348907]
[1757303619396,0.06,208.1,208.09,7.49205116]
[1757303619607,0.06,208.1,208.09,88.25205116]
[1757303619814,0.06,208.12,208.11,26.0]
[1757303620001,0.78,208.17,208.12,42.48559401]
[1757303620206,0.78,208.17,208.13,17.34161959]
[1757303620403,0.78,208.17,208.16,26.0]
[1757303620601,0.78,208.17,208.16,29.74602558]
[1757303620602,0.1,208.17,208.16,29.74602558]
[1757303621418,0.1,208.17,208.16,8.5500225]
[1757303621611,0.1,208.17,208.16,34.5500225]
[1757303621800,0.78,208.17,208.16,3.74602558]
[1757303623522,0.78,208.17,208.16,8.5500225]
[1757303624400,0.78,208.17,208.16,3.74602558]
[1757303624815,0.78,208.17,208.16,8.5500225]
[1757303626408,0.1,208.17,208.16,8.5500225]
[1757303626817,0.78,208.17,208.13,56.81321561]
[1757303627022,0.1,208.17,208.16,3.74602558]
[1757303627606,0.78,208.17,208.16,3.74602558]
[1757303631721,0.78,208.17,208.15,3.74602558]
[1757303631933,0.68,208.16,208.15,3.74602558]
[1757303632144,0.68,208.16,208.14,0.03]
[1757303632640,4.26070993,208.16,208.14,0.03]
[1757303634239,0.68,208.16,208.14,0.03]
[1757303635540,4.9037984,208.17,208.14,0.03]
[1757303635839,0.68,208.16,208.14,0.03]
[1757303636036,0.68,208.16,208.15,3.74602558]
[1757303636242,0.68,208.16,208.14,3.77602558]
[1757303636447,0.68,208.15,208.14,3.77602558]
[1757303638935,38.54,208.15,208.14,3.77602558]
[1757303639515,0.1,208.17,208.14,9.24035108]
[1757303639820,37.86,208.16,208.14,0.03]
[1757303640018,0.1,208.17,208.16,26.0]
[1757303640224,37.96,208.17,208.16,26.0]
[1757303640616,37.96,208.17,208.16,0.66]
[1757303640826,0.1,208.17,208.16,4.40602558]
[1757303642445,0.1,208.17,208.16,11.13314565]
[1757303642843,0.78,208.17,208.15,80.1]
[1757303643023,42.12606932,208.16,208.14,0.03]
[1757303643222,38.54,208.16,208.14,0.03]
[1757303644146,3.5869061,208.15,208.14,0.03]
[1757303644645,4.2669061,208.15,208.14,0.03]
[1757303645231,4.2669061,208.15,208.14,3.77602558]
[1757303645649,0.68,208.15,208.14,3.77602558]
[1757303647454,4.26904505,208.15,208.14,0.03]
[1757303647643,4.26904505,208.15,208.14,3.77602558]
[1757303649551,38.52,208.15,208.14,3.77602558]
[1757303649845,41.42904505,208.15,208.14,3.77602558]
[1757303650044,41.42904505,208.15,208.14,0.03]
[1757303650347,41.42904505,208.15,208.14,3.77602558]
[1757303650937,0.1,208.17,208.14,3.77602558]
[1757303651143,37.84,208.16,208.14,0.72]
[1757303651448,37.84,208.16,208.14,0.03]
[1757303652240,37.84,208.16,208.15,3.74602558]
[1757303652438,41.43110187,208.16,208.15,8.5502533]
[1757303652646,41.43110187,208.16,208.15,4.80422772]
[1757303652952,41.43110187,208.16,208.15,3.74602558]
[1757303653347,41.41110187,208.16,208.15,8.5502533]
[1757303653528,37.82,208.16,208.15,8.5502533]
[1757303654343,37.82,208.16,208.15,2.39452272]
[1757303654845,37.82,208.16,208.14,4.83445853]
[1757303655057,37.82,208.16,208.15,2.39452272]
[1757303655243,0.1,208.17,208.15,2.39452272]
[1757303655445,0.1,208.17,208.16,29.08452272]
[1757303655646,37.92,208.17,208.16,29.08452272]
[1757303656246,1e-08,208.17,208.16,42.68011673]
[1757303656446,1e-08,208.17,208.16,47.48411365]
[1757303656650,1e-08,208.17,208.16,49.40714435]
[1757303658296,0.1,208.19,208.16,49.40714435]
[1757303658563,0.1,208.19,208.18,2.39452272]
[1757303658936,0.1,208.19,208.18,3.08452272]
[1757303659349,0.1,208.19,208.18,2.39452272]
[1757303659546,0.82,208.19,208.16,32.72702762]
[1757303659750,0.1,208.19,208.18,2.39452272]
[1757303660342,0.1,208.19,208.18,33.19805812]
[1757303661644,0.1,208.19,208.18,33.88805812]
[1757303661867,0.1,208.19,208.18,113.98805812]
[1757303662275,0.1,208.19,208.18,111.5935354]
[1757303662565,0.1,208.19,208.18,113.98805812]
[1757303663473,0.1,208.19,208.18,113.29805812]
[1757303664252,0.1,208.19,208.18,113.98805812]
[1757303664746,0.1,208.19,208.18,113.29805812]
[1757303664947,0.1,208.19,208.18,142.18805812]
[1757303665464,0.1,208.19,208.18,110.9035354]
[1757303665662,0.1,208.19,208.18,113.29805812]
[1757303670360,0.1,208.19,208.18,113.98805812]
[1757303670566,0.1,208.19,208.18,113.29805812]
[1757303671061,0.82,208.19,208.18,113.29805812]
[1757303671378,0.82,208.19,208.18,108.49452272]
[1757303671682,0.82,208.19,208.18,82.49452272]
[1757303671871,0.82,208.19,208.18,87.29805812]
[1757303672057,0.82,208.19,208.16,4.80377442]
[1757303672254,0.72,208.18,208.17,2.39452272]
[1757303677788,37.76,208.18,208.17,28.39452272]
[1757303678487,38.45,208.18,208.17,28.39452272]
[1757303678689,38.45,208.18,208.17,33.19828887]
[1757303681095,38.45,208.18,208.17,28.39452272]
[1757303681802,38.45,208.18,208.15,0.03]
[1757303681803,42.03096962,208.18,208.15,0.03]
[1757303682092,3.58096962,208.17,208.15,0.03]
[1757303682390,2.39452272,208.16,208.15,0.03]
[1757303682569,5.97549234,208.16,208.15,0.03]
[1757303682770,6.66549234,208.16,208.15,0.03]
[1757303683167,11.46948926,208.16,208.15,0.03]
[1757303685771,6.66549234,208.16,208.15,0.03]
[1757303686220,42.01096962,208.16,208.15,0.03]
[1757303686579,44.40549234,208.16,208.15,0.03]
[1757303687878,6.66549234,208.16,208.15,0.03]
[1757303688195,44.40549234,208.16,208.15,0.03]
[1757303690604,49.20948926,208.16,208.15,0.03]
[1757303690989,62.80508327,208.16,208.15,0.03]
[1757303692988,66.68975581,208.16,208.15,0.03]
[1757303693308,62.80508327,208.16,208.15,0.03]
[1757303693683,60.41056055,208.16,208.15,0.03]
[1757303693883,62.80508327,208.16,208.15,0.03]
[1757303694104,25.06508327,208.16,208.15,0.03]
[1757303694300,62.80508327,208.16,208.15,0.03]
[1757303700305,39.59559401,208.13,208.12,1e-08]
[1757303700495,55.14917723,208.13,208.12,1e-08]
[1757303700811,93.57917723,208.13,208.12,1e-08]
[1757303701004,84.00108635,208.13,208.12,1e-08]
[1757303701413,93.57917723,208.13,208.12,1e-08]
[1757303702107,44.40097603,208.1,208.09,0.03]
[1757303702292,97.69455925,208.1,208.09,0.03]
[1757303702488,60.64455925,208.1,208.09,0.03]
[1757303702717,98.38455925,208.1,208.09,0.03]
[1757303703296,51.06646837,208.1,208.09,0.03]
[1757303703594,57.29108635,208.1,208.09,0.03]
[1757303704430,62.09646837,208.1,208.09,0.03]
[1757303704916,57.29108635,208.1,208.09,0.03]
[1757303705309,62.09646837,208.1,208.09,0.03]
[1757303705616,54.89656363,208.1,208.09,0.03]
[1757303705801,57.29108635,208.1,208.09,0.03]
[1757303706210,19.57108635,208.1,208.09,0.03]
[1757303706609,37.72,208.1,208.09,0.69]
[1757303707021,40.11452272,208.1,208.09,0.03]
[1757303707398,43.6810815,208.1,208.09,0.03]
[1757303707620,44.3610815,208.1,208.09,0.03]
[1757303708304,44.36147958,208.1,208.09,0.03]
[1757303709311,62.76245561,208.1,208.09,0.03]
[1757303710830,25.04245561,208.1,208.09,0.03]
[1757303711020,62.76245561,208.1,208.09,0.03]
[1757303711222,25.04245561,208.1,208.09,0.03]
[1757303711401,62.76245561,208.1,208.09,0.03]
[1757303711929,62.76292741,208.1,208.09,0.03]
[1757303713028,25.04292741,208.1,208.09,0.03]
[1757303713246,24.36292741,208.1,208.09,0.03]
[1757303713406,62.08292741,208.1,208.09,0.03]
[1757303714312,63.4344155,208.1,208.09,0.03]
[1757303715047,64.1144155,208.1,208.09,0.03]
[1757303716708,59.30903348,208.1,208.09,0.03]
[1757303717039,64.1144155,208.1,208.09,0.03]
[1757303717226,67.86042631,208.1,208.09,0.03]
[1757303728640,71.4321449,208.1,208.09,0.03]
[1757303732448,71.3921449,208.1,208.09,0.03]
[1757303732741,63.22012328,208.1,208.09,0.03]
[1757303732949,67.14042631,208.1,208.09,0.03]
[1757303733827,25.72148155,208.1,208.09,0.03]
[1757303734034,63.40148155,208.1,208.09,0.03]
[1757303734421,17.17008872,208.1,208.09,0.03]
[1757303734618,7.32050552,208.1,208.09,0.03]
[1757303734838,63.40148155,208.1,208.09,0.03]
[1757303737655,67.83749236,208.1,208.09,0.03]
[1757303737944,71.41922004,208.1,208.09,0.03]
[1757303740960,71.41922004,208.1,208.06,0.03]
[1757303740961,26.0,208.07,208.06,0.03]
[1757303741133,88.15782721,208.07,208.06,0.03]
[1757303741336,88.84782721,208.07,208.06,0.03]
[1757303742445,93.65390208,208.07,208.06,0.03]
[1757303742647,92.96390208,208.07,208.06,0.03]
[1757303743546,93.65390208,208.07,208.06,0.03]
[1757303745452,92.96390208,208.07,208.06,0.03]
[1757303746443,93.65390208,208.07,208.06,0.03]
[1757303749644,92.96390208,208.07,208.06,0.03]
[1757303749955,93.65390208,208.07,208.06,0.03]
[1757303751450,89.90789127,208.07,208.06,0.03]
[1757303751640,93.65390208,208.07,208.06,0.03]
[1757303752151,50.49782721,208.07,208.06,0.03]
[1757303752558,88.13782721,208.07,208.06,0.03]
[1757303752754,92.94390208,208.07,208.06,0.03]
[1757303754568,55.30390208,208.07,208.06,0.03]
[1757303754756,92.94390208,208.07,208.06,0.03]
[1757303755464,92.94390208,208.07,208.06,0.71]
[1757303755878,92.94390208,208.07,208.06,0.03]
[1757303756643,12.12658039,208.07,208.06,0.71]
[1757303756845,49.76658039,208.07,208.06,0.71]
[1757303758162,41.21449471,208.07,208.06,0.71]
[1757303758556,44.96050552,208.07,208.06,0.71]
[1757303759956,41.21449471,208.07,208.06,0.71]
[1757303761877,46.02056958,208.07,208.06,0.03]
[1757303762087,64.0521744,208.07,208.06,0.03]
[1757303762369,67.64242782,208.07,208.06,0.03]
[1757303766172,69.63442778,208.07,208.06,0.03]
[1757303766548,65.19841697,208.07,208.06,0.03]
[1757303766749,69.64442778,208.07,208.06,0.03]
[1757303769461,68.94442778,208.07,208.06,0.03]
[1757303769869,69.64442778,208.07,208.06,0.03]
[1757303770568,31.32442778,208.07,208.06,0.03]
[1757303770870,68.92442778,208.07,208.06,0.03]
[1757303771258,13.98282296,208.07,208.06,0.03]
[1757303771457,51.58282296,208.07,208.06,0.72]
[1757303771771,51.58282296,208.07,208.06,0.03]
[1757303772373,65.33417436,208.07,208.06,0.03]
[1757303772563,69.6247154,208.07,208.06,0.03]
[1757303773974,69.62499533,208.07,208.06,0.03]
[1757303776474,68.27803557,208.07,208.06,0.03]
[1757303777774,13.59559401,208.06,208.04,0.03]
[1757303777975,86.75996074,208.05,208.04,0.03]
[1757303778176,87.45996074,208.05,208.04,0.03]
[1757303778558,61.45996074,208.05,208.04,0.03]
[1757303778874,61.45996074,208.05,208.03,1e-08]
[1757303778875,39.59559401,208.04,208.03,1e-08]
[1757303779076,49.17495294,208.04,208.03,1e-08]
[1757303779268,49.87495294,208.04,208.03,1e-08]
[1757303779647,54.68172086,208.04,208.03,1e-08]
[1757303780467,55.69372082,208.04,208.03,1e-08]
[1757303780671,29.69372082,208.04,208.03,1e-08]
[1757303781355,25.59084926,208.02,208.01,0.03]
[1757303781554,70.37115714,208.02,208.01,0.03]
[1757303781778,93.3283869,208.02,208.01,0.03]
[1757303783286,39.59559401,208.0,207.98,0.03]
[1757303783469,70.37115714,208.0,207.98,0.03]
[1757303783674,76.8908494,208.0,207.98,0.03]
[1757303783985,39.59559401,207.97,207.96,0.03]
[1757303784188,86.75495294,207.97,207.96,0.03]
[1757303784356,87.45495294,207.97,207.96,0.03]
[1757303785951,92.26333876,207.97,207.96,0.03]
[1757303786778,91.56333876,207.97,207.96,0.03]
[1757303787089,92.26333876,207.97,207.96,0.03]
[1757303787284,88.67251779,207.97,207.96,0.03]
[1757303789498,88.67251779,207.97,207.95,0.03]
[1757303789499,145.99559401,207.96,207.95,1e-08]
[1757303789657,155.55512967,207.96,207.95,1e-08]
[1757303789861,186.70274959,207.96,207.95,1e-08]
[1757303790283,191.51136663,207.96,207.95,1e-08]
[1757303791664,191.51136663,207.96,207.93,1e-08]
[1757303791665,229.09136663,207.96,207.93,1e-08]
[1757303791991,41.99464506,207.94,207.93,1e-08]
[1757303792162,86.73129878,207.94,207.93,1e-08]
[1757303792363,92.24037832,207.94,207.93,1e-08]
[1757303794181,20.80395588,207.93,207.92,0.03]
[1757303794391,24.39344279,207.93,207.92,0.03]
[1757303794584,25.09344279,207.93,207.92,0.03]
[1757303796972,28.9723314,207.93,207.92,0.03]
[1757303797593,21.99439174,207.93,207.92,0.03]
[1757303797784,61.97344279,207.93,207.92,0.03]
[1757303798489,61.97344279,207.93,207.92,0.73]
[1757303799190,61.97344279,207.93,207.92,0.03]
[1757303799566,24.39344279,207.93,207.92,0.03]
[1757303799797,61.97344279,207.93,207.92,0.03]
[1757303801669,62.68344279,207.93,207.92,0.03]
[1757303804887,25.10344279,207.93,207.92,0.03]
[1757303805089,62.68344279,207.93,207.92,0.03]
[1757303805396,62.65172676,207.93,207.92,0.03]
[1757303806067,25.07172676,207.93,207.92,0.03]
[1757303806280,62.65172676,207.93,207.92,0.03]
[1757303806868,195.05172676,207.93,207.92,0.03]
[1757303808998,39.59559401,207.91,207.9,0.03]
[1757303809178,92.70862014,207.91,207.9,0.03]
[1757303809377,119.81518828,207.91,207.9,0.03]
[1757303810910,124.62496173,207.91,207.9,0.03]
[1757303811678,115.02875753,207.91,207.9,0.03]
[1757303812301,124.62496173,207.91,207.9,0.03]
[1757303812606,39.59559401,207.88,207.87,0.03]
[1757303812805,83.11311067,207.88,207.87,0.73]
[1757303812984,87.92357824,207.88,207.87,0.03]
[1757303815497,92.74798799,207.88,207.87,0.03]
[1757303815880,93.45798799,207.88,207.87,0.03]
[1757303816692,92.74798799,207.88,207.87,0.03]
[1757303817202,116.89712963,207.88,207.87,0.03]
[1757303818609,117.60712963,207.88,207.87,0.03]
[1757303819389,116.89712963,207.88,207.87,0.03]
[1757303820516,116.89712963,207.88,207.87,0.73]
[1757303820808,116.87712963,207.88,207.87,0.03]
[1757303821795,65.24760725,207.88,207.87,0.73]
[1757303822490,27.70760725,207.88,207.87,0.73]
[1757303822691,65.24760725,207.88,207.87,0.73]
[1757303825091,67.6466583,207.88,207.87,0.73]
[1757303826610,72.45712587,207.88,207.87,0.73]
[1757303827118,72.45712587,207.88,207.87,0.03]
[1757303827119,86.05271988,207.88,207.87,0.03]
[1757303829298,86.73271988,207.88,207.87,0.03]
[1757303829524,86.05271988,207.88,207.87,0.03]
[1757303830598,86.73271988,207.88,207.87,0.03]
[1757303830812,90.30999727,207.88,207.87,0.03]
[1757303832826,116.30999727,207.88,207.87,0.03]
[1757303833320,116.32883764,207.88,207.87,0.03]
[1757303834121,90.32883764,207.88,207.87,0.03]
[1757303838405,91.68526346,207.88,207.87,0.03]
[1757303840613,91.68468712,207.88,207.87,0.03]
[1757303845519,91.00468712,207.88,207.87,0.03]
[1757303846117,90.96468712,207.88,207.87,0.03]
[1757303846628,91.64468712,207.88,207.87,0.03]
[1757303848131,90.96468712,207.88,207.87,0.03]
[1757303848815,54.14468712,207.88,207.87,0.03]
[1757303849017,90.96468712,207.88,207.87,0.03]
[1757303849220,91.64468712,207.88,207.87,0.03]
[1757303850325,26.0,207.85,207.84,0.03]
[1757303850633,79.22064579,207.85,207.84,0.03]
[1757303851215,92.8162398,207.85,207.84,0.03]
[1757303851414,93.4962398,207.85,207.84,0.03]
[1757303853637,92.8162398,207.85,207.84,0.03]
[1757303854027,55.3162398,207.85,207.84,0.03]
[1757303854234,92.8162398,207.85,207.84,0.03]
[1757303854435,51.73953875,207.85,207.84,0.03]
[1757303854641,89.21953875,207.85,207.84,0.03]
[1757303854934,92.8025761,207.85,207.84,0.03]
[1757303855139,89.21953875,207.85,207.84,0.03]
[1757303855524,43.17289999,207.85,207.84,0.72]
[1757303855828,70.81278285,207.85,207.84,0.72]
[1757303856136,67.05730598,207.85,207.84,0.72]
[1757303856340,70.81278285,207.85,207.84,0.72]
[1757303858841,70.82055629,207.85,207.84,0.72]
[1757303859039,70.82055629,207.85,207.84,0.03]
[1757303859040,71.87624131,207.85,207.84,0.03]
[1757303859241,93.51154928,207.85,207.84,0.03]
[1757303860125,89.92646986,207.85,207.84,0.03]
[1757303860325,93.51032712,207.85,207.84,0.03]
[1757303864358,117.89998116,207.85,207.84,0.03]
[1757303867540,117.19998116,207.85,207.84,0.03]
[1757303868045,117.89998116,207.85,207.84,0.03]
[1757303869753,117.89998116,207.85,207.81,0.03]
[1757303869754,39.59559401,207.82,207.81,0.03]
[1757303869936,91.7546421,207.82,207.81,0.03]
[1757303870246,116.77162689,207.82,207.81,0.03]
[1757303870839,117.82800643,207.82,207.81,0.03]
[1757303871148,13.59559401,207.81,207.79,0.03]
[1757303871353,91.7546421,207.8,207.79,0.03]
[1757303871651,92.4546421,207.8,207.79,0.03]
[1757303872241,97.26696163,207.8,207.79,0.03]
[1757303876453,92.81148476,207.8,207.79,0.03]
[1757303877054,92.80926307,207.8,207.79,0.03]
[1757303877563,89.22632674,207.8,207.79,0.72]